[Event "Titled Tuesday Blitz July 13 2021"]
[White "Vovk, Orest"]
[Black "Erdogdu, Mert"]
[WhiteFideId "14113490"]
[BlackFideId "6301495"]
[WhiteElo "2203"]
[BlackElo "2485"]
[Result "1/2-1/2"]
[Round "01"]
[TimeControl "180+1"]
[Date "2021.07.13"]
[WhiteClock "0:00:16"]
[BlackClock "0:00:25"]

1. g4 {[%clk 0:03:00]}  d5 {[%clk 0:02:58]} 2. h3 {[%clk 0:02:59]}  g6 {[%clk 0:02:56]} 3. Bg2 {[%clk 0:02:57]}  Bg7 {[%clk 0:02:56]} 4. c4 {[%clk 0:02:56]}  c6 {[%clk 0:02:56]} 5. cxd5 {[%clk 0:02:52]}  cxd5 {[%clk 0:02:57]} 6. Nc3 {[%clk 0:02:52]}  e6 {[%clk 0:02:57]} 7. d4 {[%clk 0:02:50]}  Ne7 {[%clk 0:02:55]} 8. Nf3 {[%clk 0:02:51]}  Nec6 {[%clk 0:02:54]} 9. O-O {[%clk 0:02:47]}  O-O {[%clk 0:02:53]} 10. Bg5 {[%clk 0:02:46]}  Qb6 {[%clk 0:02:52]} 11. Na4 {[%clk 0:02:42]}  Qb5 {[%clk 0:02:43]} 12. e3 {[%clk 0:02:36]}  Nd7 {[%clk 0:02:39]} 13. b3 {[%clk 0:02:31]}  Nf6 {[%clk 0:02:28]} 14. Nc5 {[%clk 0:02:23]}  Ne4 {[%clk 0:02:21]} 15. a4 {[%clk 0:02:04]}  Qa5 {[%clk 0:02:18]} 16. Rc1 {[%clk 0:01:40]}  Nxg5 {[%clk 0:02:09]} 17. Nxg5 {[%clk 0:01:40]}  h6 {[%clk 0:01:55]} 18. Nf3 {[%clk 0:01:36]}  Rd8 {[%clk 0:01:55]} 19. Qd2 {[%clk 0:01:33]}  Qxd2 {[%clk 0:01:54]} 20. Nxd2 {[%clk 0:01:34]}  Nb4 {[%clk 0:01:53]} 21. f4 {[%clk 0:01:23]}  b6 {[%clk 0:01:52]} 22. Nce4 {[%clk 0:01:07]}  dxe4 {[%clk 0:01:48]} 23. Bxe4 {[%clk 0:01:08]}  Nd5 {[%clk 0:01:38]} 24. Nc4 {[%clk 0:00:58]}  Ba6 {[%clk 0:01:37]} 25. Kf2 {[%clk 0:00:57]}  Rac8 {[%clk 0:01:34]} 26. Rfd1 {[%clk 0:00:56]}  Nb4 {[%clk 0:01:03]} 27. Ne5 {[%clk 0:00:47]}  Bxe5 {[%clk 0:00:59]} 28. fxe5 {[%clk 0:00:47]}  Rxc1 {[%clk 0:00:55]} 29. Rxc1 {[%clk 0:00:47]}  Nd3+ {[%clk 0:00:56]} 30. Bxd3 {[%clk 0:00:46]}  Bxd3 {[%clk 0:00:56]} 31. Rc7 {[%clk 0:00:47]}  a6 {[%clk 0:00:56]} 32. Rc6 {[%clk 0:00:44]}  Rb8 {[%clk 0:00:53]} 33. Kf3 {[%clk 0:00:44]}  Bf1 {[%clk 0:00:50]} 34. h4 {[%clk 0:00:39]}  a5 {[%clk 0:00:45]} 35. e4 {[%clk 0:00:37]}  Ba6 {[%clk 0:00:42]} 36. d5 {[%clk 0:00:36]}  exd5 {[%clk 0:00:39]} 37. exd5 {[%clk 0:00:36]}  Kf8 {[%clk 0:00:37]} 38. Ke4 {[%clk 0:00:32]}  Ke8 {[%clk 0:00:36]} 39. h5 {[%clk 0:00:32]}  gxh5 {[%clk 0:00:35]} 40. gxh5 {[%clk 0:00:32]}  Be2 {[%clk 0:00:33]} 41. Rxh6 {[%clk 0:00:32]}  Rd8 {[%clk 0:00:31]} 42. Rh8+ {[%clk 0:00:28]}  Kd7 {[%clk 0:00:29]} 43. Rxd8+ {[%clk 0:00:27]}  Kxd8 {[%clk 0:00:29]} 44. h6 {[%clk 0:00:28]}  Bd1 {[%clk 0:00:29]} 45. Kd4 {[%clk 0:00:23]}  Bc2 {[%clk 0:00:24]} 46. e6 {[%clk 0:00:18]}  fxe6 {[%clk 0:00:24]} 47. dxe6 {[%clk 0:00:19]}  Ke7 {[%clk 0:00:24]} 48. Kc4 {[%clk 0:00:17]}  Kxe6 {[%clk 0:00:23]} 49. Kb5 {[%clk 0:00:16]}  Kf6 {[%clk 0:00:23]} 50. Kxb6 {[%clk 0:00:16]}  Bxb3 {[%clk 0:00:24]} 51. Kxa5 {[%clk 0:00:17]}  Bxa4 {[%clk 0:00:24]} 52. Kxa4 {[%clk 0:00:17]}  Kg6 {[%clk 0:00:25]} 53. h7 {[%clk 0:00:16]}  Kxh7 {[%clk 0:00:25]} 1/2-1/2


[Site "https://www.chess.com"]

[Event "Titled Tuesday Blitz July 13 2021"]
[White "Wagner, Dennis"]
[Black "Hoffmann, Asa"]
[WhiteFideId "24650684"]
[BlackFideId "2001470"]
[WhiteElo "2355"]
[BlackElo "2117"]
[Result "1-0"]
[Round "01"]
[TimeControl "180+1"]
[Date "2021.07.13"]
[WhiteClock "0:00:13"]
[BlackClock "0:00:54"]

1. c4 {[%clk 0:03:00]}  Nf6 {[%clk 0:02:56]} 2. Nc3 {[%clk 0:03:00]}  d6 {[%clk 0:02:53]} 3. d4 {[%clk 0:02:59]}  Bf5 {[%clk 0:02:46]} 4. Qb3 {[%clk 0:02:52]}  Qc8 {[%clk 0:02:41]} 5. g3 {[%clk 0:02:48]}  c6 {[%clk 0:02:38]} 6. Bg2 {[%clk 0:02:48]}  e5 {[%clk 0:02:38]} 7. e3 {[%clk 0:02:37]}  Nbd7 {[%clk 0:02:36]} 8. Nge2 {[%clk 0:02:32]}  Be7 {[%clk 0:02:36]} 9. h3 {[%clk 0:02:31]}  h6 {[%clk 0:02:33]} 10. O-O {[%clk 0:02:30]}  O-O {[%clk 0:02:33]} 11. Kh2 {[%clk 0:02:30]}  Re8 {[%clk 0:02:31]} 12. Bd2 {[%clk 0:02:25]}  Bf8 {[%clk 0:02:31]} 13. Rad1 {[%clk 0:02:18]}  a6 {[%clk 0:02:30]} 14. a4 {[%clk 0:02:17]}  Rb8 {[%clk 0:02:22]} 15. f4 {[%clk 0:01:53]}  exd4 {[%clk 0:02:18]} 16. exd4 {[%clk 0:01:51]}  Ne4 {[%clk 0:02:15]} 17. g4 {[%clk 0:01:34]}  Nxc3 {[%clk 0:02:13]} 18. Nxc3 {[%clk 0:01:31]}  Bd3 {[%clk 0:01:57]} 19. Rf3 {[%clk 0:01:29]}  Be4 {[%clk 0:01:53]} 20. Nxe4 {[%clk 0:01:27]}  Rxe4 {[%clk 0:01:52]} 21. Qd3 {[%clk 0:01:21]}  Qe8 {[%clk 0:01:44]} 22. Rf2 {[%clk 0:01:19]}  Re7 {[%clk 0:01:42]} 23. f5 {[%clk 0:01:19]}  f6 {[%clk 0:01:41]} 24. Bf4 {[%clk 0:01:18]}  Rf7 {[%clk 0:01:36]} 25. a5 {[%clk 0:01:11]}  Qd8 {[%clk 0:01:35]} 26. b4 {[%clk 0:01:10]}  Rc8 {[%clk 0:01:35]} 27. Re2 {[%clk 0:01:06]}  d5 {[%clk 0:01:33]} 28. cxd5 {[%clk 0:01:03]}  Bxb4 {[%clk 0:01:32]} 29. dxc6 {[%clk 0:01:02]}  bxc6 {[%clk 0:01:32]} 30. Qxa6 {[%clk 0:01:01]}  Bxa5 {[%clk 0:01:28]} 31. Bxc6 {[%clk 0:00:55]}  Nb8 {[%clk 0:01:27]} 32. Bxb8 {[%clk 0:00:54]}  Rxb8 {[%clk 0:01:27]} 33. Re8+ {[%clk 0:00:54]}  Qxe8 {[%clk 0:01:20]} 34. Bxe8 {[%clk 0:00:55]}  Bc7+ {[%clk 0:01:19]} 35. Kg2 {[%clk 0:00:55]}  Rxe8 {[%clk 0:01:19]} 36. Qc4 {[%clk 0:00:49]}  Kf8 {[%clk 0:01:16]} 37. Rd2 {[%clk 0:00:41]}  Rfe7 {[%clk 0:01:16]} 38. Rc2 {[%clk 0:00:39]}  Bf4 {[%clk 0:01:15]} 39. Qd5 {[%clk 0:00:35]}  Re3 {[%clk 0:01:13]} 40. Ra2 {[%clk 0:00:18]}  Rg3+ {[%clk 0:01:12]} 41. Kf2 {[%clk 0:00:18]}  Bb8 {[%clk 0:01:00]} 42. Rb2 {[%clk 0:00:15]}  Rge3 {[%clk 0:00:56]} 43. Rxb8 {[%clk 0:00:13]}  Re2+ {[%clk 0:00:54]} 44. Kf3 {[%clk 0:00:13]}  Re3+ {[%clk 0:00:54]} 45. Kf4 {[%clk 0:00:13]} 1-0


[Site "https://www.chess.com"]

[Event "Titled Tuesday Blitz July 13 2021"]
[White "Yoo, Christopher Woojin"]
[Black "Arias, Juan Cruz"]
[WhiteFideId "30909694"]
[BlackFideId "118540"]
[WhiteElo "2105"]
[BlackElo "2083"]
[Result "1-0"]
[Round "01"]
[TimeControl "180+1"]
[Date "2021.07.13"]
[WhiteClock "0:01:10"]
[BlackClock "0:01:15"]

1. e4 {[%clk 0:02:55]}  e6 {[%clk 0:02:58]} 2. b3 {[%clk 0:02:55]}  b6 {[%clk 0:02:48]} 3. Bb2 {[%clk 0:02:51]}  Bb7 {[%clk 0:02:47]} 4. Nc3 {[%clk 0:02:50]}  c5 {[%clk 0:02:47]} 5. g3 {[%clk 0:02:49]}  Nf6 {[%clk 0:02:44]} 6. Bg2 {[%clk 0:02:48]}  d5 {[%clk 0:02:37]} 7. exd5 {[%clk 0:02:46]}  Nxd5 {[%clk 0:02:37]} 8. Nxd5 {[%clk 0:02:42]}  Bxd5 {[%clk 0:02:31]} 9. Nf3 {[%clk 0:02:26]}  Nd7 {[%clk 0:02:25]} 10. O-O {[%clk 0:02:23]}  Nf6 {[%clk 0:02:25]} 11. c4 {[%clk 0:02:23]}  Bb7 {[%clk 0:02:24]} 12. d4 {[%clk 0:02:20]}  Be7 {[%clk 0:02:17]} 13. Ne5 {[%clk 0:01:59]}  Bxg2 {[%clk 0:02:16]} 14. Kxg2 {[%clk 0:01:59]}  Qc8 {[%clk 0:02:13]} 15. d5 {[%clk 0:01:50]}  O-O {[%clk 0:02:05]} 16. Nc6 {[%clk 0:01:42]}  Qb7 {[%clk 0:01:57]} 17. Qf3 {[%clk 0:01:33]}  exd5 {[%clk 0:01:48]} 18. cxd5 {[%clk 0:01:25]}  Ne8 {[%clk 0:01:31]} 19. Rfe1 {[%clk 0:01:20]}  Bf6 {[%clk 0:01:30]} 20. Bxf6 {[%clk 0:01:15]}  Nxf6 {[%clk 0:01:31]} 21. d6 {[%clk 0:01:15]}  Qd7 {[%clk 0:01:24]} 22. Rad1 {[%clk 0:01:11]}  Rad8 {[%clk 0:01:15]} 23. Nxd8 {[%clk 0:01:10]} 1-0


[Site "https://www.chess.com"]

[Event "Titled Tuesday Blitz July 13 2021"]
[White "Yuan, Qingyu"]
[Black "Gerasimenyuk, Mikhail"]
[WhiteFideId "8609772"]
[BlackFideId "14111845"]
[WhiteElo "2359"]
[BlackElo "2254"]
[Result "1-0"]
[Round "01"]
[TimeControl "180+1"]
[Date "2021.07.13"]
[WhiteClock "0:00:31"]
[BlackClock "0:00:36"]

1. e4 {[%clk 0:02:59]}  d5 {[%clk 0:02:59]} 2. exd5 {[%clk 0:02:59]}  Qxd5 {[%clk 0:03:00]} 3. Nc3 {[%clk 0:02:59]}  Qa5 {[%clk 0:03:00]} 4. d4 {[%clk 0:02:59]}  Nf6 {[%clk 0:03:00]} 5. Nf3 {[%clk 0:02:59]}  Bg4 {[%clk 0:02:51]} 6. h3 {[%clk 0:02:57]}  Qh5 {[%clk 0:02:47]} 7. Be2 {[%clk 0:02:48]}  Nc6 {[%clk 0:02:46]} 8. Rg1 {[%clk 0:02:41]}  Bxf3 {[%clk 0:02:38]} 9. Bxf3 {[%clk 0:02:28]}  Qa5 {[%clk 0:02:36]} 10. Be3 {[%clk 0:02:21]}  O-O-O {[%clk 0:02:32]} 11. Qd3 {[%clk 0:02:16]}  Nb4 {[%clk 0:02:17]} 12. Qe2 {[%clk 0:02:14]}  e5 {[%clk 0:02:13]} 13. dxe5 {[%clk 0:01:59]}  Qxe5 {[%clk 0:02:14]} 14. a3 {[%clk 0:01:59]}  Qa5 {[%clk 0:02:02]} 15. g4 {[%clk 0:01:48]}  Nbd5 {[%clk 0:01:51]} 16. O-O-O {[%clk 0:01:37]}  Nxc3 {[%clk 0:01:49]} 17. Rxd8+ {[%clk 0:01:37]}  Kxd8 {[%clk 0:01:50]} 18. Qd2+ {[%clk 0:01:38]}  Bd6 {[%clk 0:01:37]} 19. Qxc3 {[%clk 0:01:29]}  Qxc3 {[%clk 0:01:36]} 20. bxc3 {[%clk 0:01:30]}  Bxa3+ {[%clk 0:01:35]} 21. Kb1 {[%clk 0:01:29]}  c6 {[%clk 0:01:34]} 22. Bxa7 {[%clk 0:01:29]}  Kc7 {[%clk 0:01:34]} 23. Bd4 {[%clk 0:01:28]}  Re8 {[%clk 0:01:28]} 24. c4 {[%clk 0:01:24]}  Bd6 {[%clk 0:01:26]} 25. g5 {[%clk 0:01:24]}  Ne4 {[%clk 0:01:17]} 26. Kb2 {[%clk 0:01:23]}  Nd2 {[%clk 0:01:00]} 27. Bg4 {[%clk 0:01:20]}  Nxc4+ {[%clk 0:01:00]} 28. Kc3 {[%clk 0:01:20]}  Ne5 {[%clk 0:00:58]} 29. Bd1 {[%clk 0:01:18]}  g6 {[%clk 0:00:58]} 30. Kb3 {[%clk 0:01:11]}  Nd7 {[%clk 0:00:57]} 31. Bg4 {[%clk 0:01:03]}  Re4 {[%clk 0:00:56]} 32. Rd1 {[%clk 0:01:00]}  Nc5+ {[%clk 0:00:51]} 33. Bxc5 {[%clk 0:01:00]}  Bxc5 {[%clk 0:00:51]} 34. Rd7+ {[%clk 0:01:01]}  Kb6 {[%clk 0:00:50]} 35. Rxf7 {[%clk 0:01:01]}  Re7 {[%clk 0:00:50]} 36. Rf6 {[%clk 0:00:49]}  Re5 {[%clk 0:00:48]} 37. f4 {[%clk 0:00:49]}  Re3+ {[%clk 0:00:46]} 38. Kc4 {[%clk 0:00:49]}  Rg3 {[%clk 0:00:45]} 39. Rf7 {[%clk 0:00:46]}  Bd6 {[%clk 0:00:45]} 40. Bc8 {[%clk 0:00:41]}  Bc7 {[%clk 0:00:44]} 41. Rxh7 {[%clk 0:00:34]}  Rf3 {[%clk 0:00:41]} 42. f5 {[%clk 0:00:34]}  Rf4+ {[%clk 0:00:42]} 43. Kd3 {[%clk 0:00:34]}  gxf5 {[%clk 0:00:41]} 44. g6 {[%clk 0:00:32]}  Rf3+ {[%clk 0:00:41]} 45. Ke2 {[%clk 0:00:33]}  Rg3 {[%clk 0:00:42]} 46. Bxf5 {[%clk 0:00:33]}  Be5 {[%clk 0:00:38]} 47. Bg4 {[%clk 0:00:32]}  Kc5 {[%clk 0:00:37]} 48. Rh5 {[%clk 0:00:30]}  Kd4 {[%clk 0:00:36]} 49. Rxe5 {[%clk 0:00:30]}  Kxe5 {[%clk 0:00:36]} 50. g7 {[%clk 0:00:31]} 1-0


[Site "https://www.chess.com"]

[Event "Titled Tuesday Blitz July 13 2021"]
[White "Zanette, Edgard Vinicius"]
[Black "Concio, Michael Jr."]
[WhiteFideId "2109263"]
[BlackFideId "5217873"]
[WhiteElo "2202"]
[BlackElo "1896"]
[Result "0-1"]
[Round "01"]
[TimeControl "180+1"]
[Date "2021.07.13"]
[WhiteClock "0:00:11"]
[BlackClock "0:00:37"]

1. e4 {[%clk 0:02:52]}  e5 {[%clk 0:02:59]} 2. Nf3 {[%clk 0:02:51]}  Nc6 {[%clk 0:03:00]} 3. Bb5 {[%clk 0:02:46]}  a6 {[%clk 0:02:57]} 4. Ba4 {[%clk 0:02:46]}  Nf6 {[%clk 0:02:57]} 5. O-O {[%clk 0:02:45]}  b5 {[%clk 0:02:56]} 6. Bb3 {[%clk 0:02:45]}  Be7 {[%clk 0:02:56]} 7. Re1 {[%clk 0:02:42]}  O-O {[%clk 0:02:56]} 8. a4 {[%clk 0:02:41]}  Bb7 {[%clk 0:02:56]} 9. Nc3 {[%clk 0:02:39]}  Nd4 {[%clk 0:02:49]} 10. Nxe5 {[%clk 0:02:30]}  Nxb3 {[%clk 0:02:49]} 11. cxb3 {[%clk 0:02:31]}  b4 {[%clk 0:02:49]} 12. Nd5 {[%clk 0:02:28]}  Nxd5 {[%clk 0:02:49]} 13. exd5 {[%clk 0:02:28]}  Bxd5 {[%clk 0:02:50]} 14. d4 {[%clk 0:02:27]}  Bf6 {[%clk 0:02:42]} 15. a5 {[%clk 0:02:25]}  Re8 {[%clk 0:02:39]} 16. Bf4 {[%clk 0:02:18]}  d6 {[%clk 0:02:38]} 17. Ng4 {[%clk 0:02:08]}  Rxe1+ {[%clk 0:02:36]} 18. Qxe1 {[%clk 0:02:08]}  Bxd4 {[%clk 0:02:37]} 19. Rd1 {[%clk 0:02:07]}  c5 {[%clk 0:02:37]} 20. Be3 {[%clk 0:01:49]}  Bxb3 {[%clk 0:02:30]} 21. Bxd4 {[%clk 0:01:36]}  Bxd1 {[%clk 0:02:29]} 22. Bf6 {[%clk 0:01:27]}  gxf6 {[%clk 0:01:45]} 23. Qxd1 {[%clk 0:01:24]}  Qe7 {[%clk 0:01:42]} 24. h3 {[%clk 0:01:12]}  Re8 {[%clk 0:01:12]} 25. Qf3 {[%clk 0:01:08]}  Kg7 {[%clk 0:01:11]} 26. Qf4 {[%clk 0:01:01]}  Kh8 {[%clk 0:01:00]} 27. Qh6 {[%clk 0:00:49]}  Rg8 {[%clk 0:00:47]} 28. Nxf6 {[%clk 0:00:34]}  Rg7 {[%clk 0:00:47]} 29. Ng4 {[%clk 0:00:18]}  Qe1+ {[%clk 0:00:34]} 30. Kh2 {[%clk 0:00:18]}  Qe6 {[%clk 0:00:35]} 31. g3 {[%clk 0:00:15]}  Qxh6 {[%clk 0:00:35]} 32. Nxh6 {[%clk 0:00:15]}  c4 {[%clk 0:00:35]} 33. Nf5 {[%clk 0:00:15]}  c3 {[%clk 0:00:36]} 34. bxc3 {[%clk 0:00:14]}  b3 {[%clk 0:00:36]} 35. Nd4 {[%clk 0:00:11]}  b2 {[%clk 0:00:37]} 0-1


[Site "https://www.chess.com"]

[Event "Titled Tuesday Blitz July 13 2021"]
[White "Zong, Davis"]
[Black "Bersamina, Paulo"]
[WhiteFideId "30903955"]
[BlackFideId "5206995"]
[WhiteElo "2400"]
[BlackElo "2349"]
[Result "0-1"]
[Round "01"]
[TimeControl "180+1"]
[Date "2021.07.13"]
[WhiteClock "0:00:04"]
[BlackClock "0:01:04"]

1. d4 {[%clk 0:03:00]}  Nf6 {[%clk 0:02:59]} 2. c4 {[%clk 0:03:01]}  g6 {[%clk 0:02:57]} 3. Nc3 {[%clk 0:03:00]}  Bg7 {[%clk 0:02:57]} 4. e4 {[%clk 0:03:00]}  d6 {[%clk 0:02:57]} 5. Nf3 {[%clk 0:02:59]}  O-O {[%clk 0:02:58]} 6. Be2 {[%clk 0:02:54]}  Na6 {[%clk 0:02:58]} 7. O-O {[%clk 0:02:54]}  e5 {[%clk 0:02:58]} 8. d5 {[%clk 0:02:45]}  Nc5 {[%clk 0:02:58]} 9. Nd2 {[%clk 0:02:46]}  a5 {[%clk 0:02:58]} 10. b3 {[%clk 0:02:37]}  Ne8 {[%clk 0:02:55]} 11. a3 {[%clk 0:02:32]}  f5 {[%clk 0:02:54]} 12. f3 {[%clk 0:02:33]}  Bh6 {[%clk 0:02:49]} 13. Bb2 {[%clk 0:02:21]}  Ng7 {[%clk 0:02:43]} 14. b4 {[%clk 0:02:17]}  Be3+ {[%clk 0:02:38]} 15. Kh1 {[%clk 0:02:17]}  Nh5 {[%clk 0:02:38]} 16. bxc5 {[%clk 0:02:03]}  Ng3+ {[%clk 0:02:36]} 17. hxg3 {[%clk 0:01:59]}  Qg5 {[%clk 0:02:35]} 18. f4 {[%clk 0:01:57]}  exf4 {[%clk 0:02:26]} 19. Nf3 {[%clk 0:01:53]}  Qh6+ {[%clk 0:02:23]} 20. Nh2 {[%clk 0:01:45]}  fxg3 {[%clk 0:02:23]} 21. Bh5 {[%clk 0:01:45]}  f4 {[%clk 0:02:09]} 22. Re1 {[%clk 0:01:28]}  gxh5 {[%clk 0:02:06]} 23. Nf3 {[%clk 0:01:25]}  Bxc5 {[%clk 0:01:56]} 24. Nb5 {[%clk 0:01:20]}  h4 {[%clk 0:01:45]} 25. Bd4 {[%clk 0:00:47]}  h3 {[%clk 0:01:40]} 26. Qe2 {[%clk 0:00:25]}  Bg4 {[%clk 0:01:32]} 27. Bxc5 {[%clk 0:00:19]}  dxc5 {[%clk 0:01:29]} 28. Nxc7 {[%clk 0:00:19]}  Rf6 {[%clk 0:01:04]} 29. Nxa8 {[%clk 0:00:06]}  Qh5 {[%clk 0:01:03]} 30. gxh3 {[%clk 0:00:03]}  Bxf3+ {[%clk 0:01:02]} 31. Qxf3 {[%clk 0:00:02]}  Qxf3+ {[%clk 0:01:03]} 32. Kg1 {[%clk 0:00:03]}  Qf2+ {[%clk 0:01:03]} 33. Kh1 {[%clk 0:00:04]}  Qh2# {[%clk 0:01:04]} 0-1


[Site "https://www.chess.com"]

[Event "Titled Tuesday Blitz July 13 2021"]
[White "Zubritskiy, Artyom"]
[Black "Juhasz, Agoston"]
[WhiteFideId "4181247"]
[BlackFideId "778346"]
[WhiteElo "2559"]
[BlackElo "2211"]
[Result "1-0"]
[Round "01"]
[TimeControl "180+1"]
[Date "2021.07.13"]
[WhiteClock "0:00:20"]
[BlackClock "0:00:06"]

1. d4 {[%clk 0:02:56]}  Nf6 {[%clk 0:02:59]} 2. c4 {[%clk 0:02:55]}  e6 {[%clk 0:02:57]} 3. g3 {[%clk 0:02:54]}  c5 {[%clk 0:02:52]} 4. d5 {[%clk 0:02:53]}  exd5 {[%clk 0:02:53]} 5. cxd5 {[%clk 0:02:54]}  d6 {[%clk 0:02:53]} 6. Nc3 {[%clk 0:02:54]}  g6 {[%clk 0:02:53]} 7. Bg2 {[%clk 0:02:54]}  Bg7 {[%clk 0:02:53]} 8. Nf3 {[%clk 0:02:55]}  O-O {[%clk 0:02:54]} 9. O-O {[%clk 0:02:55]}  Re8 {[%clk 0:02:53]} 10. Nd2 {[%clk 0:02:53]}  Nbd7 {[%clk 0:02:48]} 11. a4 {[%clk 0:02:48]}  Ng4 {[%clk 0:02:00]} 12. h3 {[%clk 0:02:43]}  Nh6 {[%clk 0:01:50]} 13. Nc4 {[%clk 0:02:33]}  Ne5 {[%clk 0:01:42]} 14. Nxe5 {[%clk 0:02:22]}  Rxe5 {[%clk 0:01:43]} 15. Bf4 {[%clk 0:02:20]}  Re8 {[%clk 0:01:39]} 16. Nb5 {[%clk 0:01:50]}  Bf8 {[%clk 0:01:27]} 17. Nxd6 {[%clk 0:01:47]}  g5 {[%clk 0:01:13]} 18. Nxe8 {[%clk 0:01:30]}  gxf4 {[%clk 0:01:12]} 19. Qd2 {[%clk 0:01:05]}  Qxe8 {[%clk 0:00:52]} 20. Qxf4 {[%clk 0:01:04]}  Nf5 {[%clk 0:00:50]} 21. e3 {[%clk 0:00:59]}  Bg7 {[%clk 0:00:44]} 22. Rab1 {[%clk 0:00:56]}  Bd7 {[%clk 0:00:43]} 23. b3 {[%clk 0:00:55]}  Rd8 {[%clk 0:00:42]} 24. Rfc1 {[%clk 0:00:54]}  b6 {[%clk 0:00:40]} 25. Qc7 {[%clk 0:00:33]}  Rc8 {[%clk 0:00:23]} 26. Qxa7 {[%clk 0:00:30]}  Nxg3 {[%clk 0:00:23]} 27. fxg3 {[%clk 0:00:27]}  Qxe3+ {[%clk 0:00:21]} 28. Kh1 {[%clk 0:00:23]}  Qxg3 {[%clk 0:00:19]} 29. Qxd7 {[%clk 0:00:21]}  Rf8 {[%clk 0:00:06]} 30. Qg4 {[%clk 0:00:20]} 1-0


[Site "https://www.chess.com"]

[Event "Titled Tuesday Blitz July 13 2021"]
[White "Arabidze, Meri"]
[Black "Khater, Sherif"]
[WhiteFideId "13604040"]
[BlackFideId "2034280"]
[WhiteElo "2432"]
[BlackElo "2499"]
[Result "1-0"]
[Round "02"]
[TimeControl "180+1"]
[Date "2021.07.13"]
[WhiteClock "0:00:57"]
[BlackClock "0:00:33"]

1. d4 {[%clk 0:03:00]}  d5 {[%clk 0:02:59]} 2. Nf3 {[%clk 0:03:01]}  c6 {[%clk 0:03:00]} 3. c4 {[%clk 0:03:02]}  Nf6 {[%clk 0:03:00]} 4. Nc3 {[%clk 0:03:01]}  e6 {[%clk 0:03:01]} 5. e3 {[%clk 0:03:01]}  Nbd7 {[%clk 0:03:01]} 6. Qc2 {[%clk 0:03:01]}  Bd6 {[%clk 0:03:00]} 7. b3 {[%clk 0:03:01]}  a6 {[%clk 0:02:59]} 8. Bb2 {[%clk 0:03:01]}  Qe7 {[%clk 0:02:59]} 9. Bd3 {[%clk 0:03:00]}  O-O {[%clk 0:02:59]} 10. O-O {[%clk 0:02:57]}  e5 {[%clk 0:02:57]} 11. cxd5 {[%clk 0:02:55]}  cxd5 {[%clk 0:02:56]} 12. dxe5 {[%clk 0:02:54]}  Nxe5 {[%clk 0:02:57]} 13. Nxe5 {[%clk 0:02:34]}  Qxe5 {[%clk 0:02:55]} 14. g3 {[%clk 0:02:34]}  Qh5 {[%clk 0:02:53]} 15. Be2 {[%clk 0:01:52]}  Qh3 {[%clk 0:02:46]} 16. Bf3 {[%clk 0:01:42]}  Ng4 {[%clk 0:02:32]} 17. Bxg4 {[%clk 0:01:42]}  Bxg4 {[%clk 0:02:33]} 18. f3 {[%clk 0:01:41]}  Be6 {[%clk 0:02:29]} 19. Ne2 {[%clk 0:01:41]}  Rac8 {[%clk 0:02:20]} 20. Qd2 {[%clk 0:01:42]}  Rfe8 {[%clk 0:02:17]} 21. Rac1 {[%clk 0:01:32]}  Rxc1 {[%clk 0:02:12]} 22. Rxc1 {[%clk 0:01:32]}  Qh6 {[%clk 0:01:57]} 23. Nf4 {[%clk 0:01:30]}  Bxf4 {[%clk 0:01:54]} 24. exf4 {[%clk 0:01:31]}  Qg6 {[%clk 0:01:51]} 25. Re1 {[%clk 0:01:27]}  h5 {[%clk 0:01:50]} 26. Re5 {[%clk 0:01:22]}  f6 {[%clk 0:01:38]} 27. f5 {[%clk 0:01:23]}  Bxf5 {[%clk 0:01:24]} 28. Qxd5+ {[%clk 0:01:22]}  Kh7 {[%clk 0:01:18]} 29. Rxe8 {[%clk 0:01:20]}  Qxe8 {[%clk 0:01:01]} 30. Qxf5+ {[%clk 0:01:19]}  g6 {[%clk 0:01:02]} 31. Qe4 {[%clk 0:01:16]}  Qd7 {[%clk 0:00:58]} 32. Bd4 {[%clk 0:01:12]}  Qc7 {[%clk 0:00:52]} 33. Kg2 {[%clk 0:01:10]}  Qd7 {[%clk 0:00:51]} 34. g4 {[%clk 0:01:03]}  hxg4 {[%clk 0:00:48]} 35. fxg4 {[%clk 0:01:03]}  b5 {[%clk 0:00:48]} 36. h4 {[%clk 0:01:01]}  f5 {[%clk 0:00:40]} 37. Qe5 {[%clk 0:00:58]}  Qb7+ {[%clk 0:00:32]} 38. Kg3 {[%clk 0:00:58]}  Qc8 {[%clk 0:00:33]} 39. Qg7# {[%clk 0:00:57]} 1-0


[Site "https://www.chess.com"]

[Event "Titled Tuesday Blitz July 13 2021"]
[White "Atanasov, Anthony"]
[Black "Gabrielian, Artur"]
[WhiteFideId "2623897"]
[BlackFideId "4131002"]
[WhiteElo "1889"]
[BlackElo "2523"]
[Result "0-1"]
[Round "02"]
[TimeControl "180+1"]
[Date "2021.07.13"]
[WhiteClock "0:00:01"]
[BlackClock "0:00:31"]

1. d4 {[%clk 0:03:00]}  Nf6 {[%clk 0:02:59]} 2. Bf4 {[%clk 0:03:01]}  g6 {[%clk 0:02:59]} 3. e3 {[%clk 0:03:02]}  Bg7 {[%clk 0:02:59]} 4. Nf3 {[%clk 0:03:03]}  O-O {[%clk 0:02:59]} 5. Be2 {[%clk 0:03:03]}  c5 {[%clk 0:02:59]} 6. O-O {[%clk 0:03:04]}  d6 {[%clk 0:02:58]} 7. Nbd2 {[%clk 0:03:04]}  b6 {[%clk 0:02:56]} 8. c3 {[%clk 0:03:04]}  Bb7 {[%clk 0:02:56]} 9. a4 {[%clk 0:03:05]}  Nc6 {[%clk 0:02:56]} 10. h3 {[%clk 0:03:05]}  Re8 {[%clk 0:02:55]} 11. Nc4 {[%clk 0:03:04]}  cxd4 {[%clk 0:02:54]} 12. exd4 {[%clk 0:03:05]}  a6 {[%clk 0:02:52]} 13. Qb3 {[%clk 0:03:05]}  Nd5 {[%clk 0:02:50]} 14. Bg3 {[%clk 0:03:03]}  Rb8 {[%clk 0:02:48]} 15. Nxd6 {[%clk 0:03:02]}  exd6 {[%clk 0:02:48]} 16. Qxd5 {[%clk 0:02:52]}  Nxd4 {[%clk 0:02:40]} 17. Qxd4 {[%clk 0:02:53]}  Bxd4 {[%clk 0:02:38]} 18. Nxd4 {[%clk 0:02:52]}  Qg5 {[%clk 0:02:32]} 19. Rfe1 {[%clk 0:02:41]}  Rbd8 {[%clk 0:02:16]} 20. Bd3 {[%clk 0:02:37]}  Qd5 {[%clk 0:02:13]} 21. Bf1 {[%clk 0:02:36]}  h5 {[%clk 0:02:11]} 22. Rad1 {[%clk 0:02:33]}  Rxe1 {[%clk 0:02:10]} 23. Rxe1 {[%clk 0:02:34]}  Kf8 {[%clk 0:01:59]} 24. Bf4 {[%clk 0:02:31]}  g5 {[%clk 0:01:59]} 25. Be3 {[%clk 0:02:27]}  Re8 {[%clk 0:01:58]} 26. h4 {[%clk 0:02:21]}  f6 {[%clk 0:01:54]} 27. hxg5 {[%clk 0:02:21]}  fxg5 {[%clk 0:01:54]} 28. Nf3 {[%clk 0:02:20]}  h4 {[%clk 0:01:49]} 29. c4 {[%clk 0:01:57]}  Qf5 {[%clk 0:01:45]} 30. Nd4 {[%clk 0:01:44]}  Qe4 {[%clk 0:01:43]} 31. f3 {[%clk 0:01:33]}  Qg6 {[%clk 0:01:26]} 32. Re2 {[%clk 0:01:23]}  g4 {[%clk 0:01:22]} 33. fxg4 {[%clk 0:01:21]}  Qxg4 {[%clk 0:01:14]} 34. Bh6+ {[%clk 0:01:18]}  Kf7 {[%clk 0:01:14]} 35. Rf2+ {[%clk 0:01:19]}  Kg6 {[%clk 0:01:11]} 36. Rf4 {[%clk 0:00:54]}  Qd1 {[%clk 0:01:09]} 37. Nf5 {[%clk 0:00:23]}  Re1 {[%clk 0:00:45]} 38. Bf8 {[%clk 0:00:14]}  h3 {[%clk 0:00:35]} 39. Nh4+ {[%clk 0:00:04]}  Kh5 {[%clk 0:00:33]} 40. g3 {[%clk 0:00:02]}  Rxf1+ {[%clk 0:00:31]} 41. Rxf1 {[%clk 0:00:01]}  h2+ {[%clk 0:00:31]} 42. Kf2 {[%clk 0:00:01]}  Qxf1+ {[%clk 0:00:31]} 43. Kxf1 {[%clk 0:00:01]}  h1=Q+ {[%clk 0:00:31]} 0-1


[Site "https://www.chess.com"]